Workbook

Sheet Sheet1
A1: A1)
A2: 185
A3: 225
A4: 240
A5: 196
A6: 175
A7: 180
A8: 194
A9: 147
A10: 223
A12: Mean | B12: =AVERAGE(A2:A10) -> 196.1111111
A13: Stdev | B13: =STDEV(A2:A10) -> 29.00191565
A14: t value | B14: =TINV(0.05,8) -> 2.306004135
A15: n= | B15: 9
A16: Lower limit | B16: =B12-(B14*B13)/SQRT(B15) -> 173.8182653
A17: Upper limit | B17: =B12+(B14*B13)/SQRT(B15) -> 218.4039569
A19: So the 95% CI is (173.8183,218.404)
A23: A2)
B24: The 95% CI for the mean difference is given by:
C28: sample 1 | D28: sample 2
C29: 120 | D29: 122
C30: 145 | D30: 142
C31: 130 | D31: 135
C32: 160 | D32: 158
C33: 152 | D33: 155
C34: 143 | D34: 140
C35: 126 | D35: 130
C36: 121 | D36: 120
C37: 115 | D37: 124
C38: 135 | D38: 130
B40: Mean | C40: =AVERAGE(C29:C38) -> 134.7 | D40: =AVERAGE(D29:D38) -> 135.6
B41: Stdev | C41: =STDEV(C29:C38) -> 14.92239182 | D41: =STDEV(D29:D38) -> 13.18416559
B42: n | C42: 10 | D42: 10
B43: SP= | C43: =SQRT((9*(C41^2+D41^2))/(18)) -> 14.08012784
B44: Lower limit= | C44: =((D40-C40)-TINV(0.05,8)*C43*(SQRT(1/5))) -> -13.62050356
B45: Upper limit | C45: =((D40-C40)+TINV(0.05,8)*C43*(SQRT(1/5))) -> 15.42050356
C46: .
B47: So the 95% CI for the difference is (-13.6205,15.4205)
A50: A3) | B50: The 95% CI for the differnce iin proportion is given by:
F55: 0.14 | I55: 0.86
F57: 0.22 | I57: 0.78
E59: n1,n2= | F59: 100
E61: Z= | F61: =NORMSINV(0.975) -> 1.959963985
E63: Lower limit= | F63: =(F57-F55)-F61*SQRT((F55*I55/F59)+(F57*I57)/100) -> -0.02591062155
E64: Upper limit= | F64: =(F57-F55)+F61*SQRT((F55*I55/F59)+(F57*I57)/F59) -> 0.1859106215
E66: So the CI is (-0.02591,0.1859110)
A69: A4) | B69: The 95% CI for the difference In means is given by
C73: Men | D73: Female
C74: 3 | D74: 5
C75: 4 | D75: 3
C76: 6 | D76: 1
C77: 8 | D77: 2
C78: 2 | D78: 0
C79: 1 | D79: 4
C80: 0 | D80: 3
C81: 2 | D81: 1
B83: Mean | C83: =AVERAGE(C74:C81) -> 3.25 | D83: =AVERAGE(D74:D81) -> 2.375
B84: STDEV | C84: =STDEV(C74:C81) -> 2.659215781 | D84: =STDEV(D74:D81) -> 1.685018016
B85: n= | C85: 8
B86: Sp= | C86: =SQRT(7*(C84^2+D84^2)/14) -> 2.226063149
B87: Lower limit= | C87: =(C83-D83)-TINV(0.05,7)*C86*0.5 -> -1.756901454
B88: upper limit= | C88: =(C83-D83)+C86*TINV(0.05,7)*0.5 -> 3.506901454
B89: CI=(-1.7569,3.5069)
A92: A5)
A93: a) | B93: The 95 % Ci for the proportion is given by
F98: =44/120 -> 0.3666666667
F100: =1-F98 -> 0.6333333333
E102: n= | F102: 120
E103: Z= | F103: =NORMSINV(0.975) -> 1.959963985
E105: Lower limit= | F105: =F98-F103*SQRT(F98*F100/F102) -> 0.2804464011
E106: Upper limit= | F106: =F98+F103*SQRT(F98*F100/F102) -> 0.4528869323
E108: Thus 95% ci is(0.2804,0.45287)
A111: b) | B111: The 95% CI for the differnce in proportion is given by:
G117: =44/65 -> 0.6769230769 | J117: =1-G117 -> 0.3230769231
G119: =21/120 -> 0.175 | J119: =99/120 -> 0.825
F122: n1,n2= | G122: 120
F124: Z= | G124: =NORMSINV(0.975) -> 1.959963985
F126: LOWER LIMIT | G126: =(G117-G119)-G124*SQRT((G117*J117+G119*J119)/120) -> 0.3941141857
F127: Upper limit | G127: =(G117-G119)+(G124*SQRT((G117*J117+G119*J119)/G122)) -> 0.6097319681
F129: The ci is(0.3941,0.6097)

Sheet Sheet2

Sheet Sheet3
